[Event "Titled Tuesday Blitz August 22 Late 2023"]
[White "Bazilius, Augustinas"]
[Black "Ozalp, Burak"]
[WhiteFideId "12832251"]
[BlackFideId "6314210"]
[WhiteElo "2461"]
[BlackElo "2398"]
[Result "1-0"]
[Round "11"]
[TimeControl "180+1"]
[Date "2023.08.22"]
[WhiteClock "0:00:08"]
[BlackClock "0:01:24"]
[Board "78"]

1. d4 {[%clk 0:03:00]}  d5 {[%clk 0:02:58]} 2. c4 {[%clk 0:03:01]}  e6 {[%clk 0:02:58]} 3. Nf3 {[%clk 0:03:02]}  Nf6 {[%clk 0:02:58]} 4. g3 {[%clk 0:03:03]}  Be7 {[%clk 0:02:58]} 5. Bg2 {[%clk 0:03:04]}  O-O {[%clk 0:02:58]} 6. O-O {[%clk 0:03:04]}  dxc4 {[%clk 0:02:59]} 7. Ne5 {[%clk 0:03:02]}  a5 {[%clk 0:02:59]} 8. Nxc4 {[%clk 0:03:00]}  a4 {[%clk 0:02:43]} 9. Nc3 {[%clk 0:02:52]}  a3 {[%clk 0:02:37]} 10. bxa3 {[%clk 0:02:53]}  Nc6 {[%clk 0:02:32]} 11. e3 {[%clk 0:02:41]}  Nd5 {[%clk 0:02:32]} 12. Qc2 {[%clk 0:02:29]}  Na5 {[%clk 0:02:24]} 13. Nxd5 {[%clk 0:02:21]}  exd5 {[%clk 0:02:17]} 14. Ne5 {[%clk 0:02:16]}  f6 {[%clk 0:02:03]} 15. Nd3 {[%clk 0:02:05]}  Bf5 {[%clk 0:02:02]} 16. Qc3 {[%clk 0:01:53]}  Bxd3 {[%clk 0:01:58]} 17. Qxd3 {[%clk 0:01:52]}  Nc4 {[%clk 0:01:59]} 18. e4 {[%clk 0:01:45]}  c6 {[%clk 0:01:59]} 19. exd5 {[%clk 0:01:38]}  cxd5 {[%clk 0:02:00]} 20. Qf5 {[%clk 0:01:35]}  Nb6 {[%clk 0:01:39]} 21. Rb1 {[%clk 0:01:35]}  Qd6 {[%clk 0:01:30]} 22. Bf4 {[%clk 0:01:21]}  Qd7 {[%clk 0:01:25]} 23. Qxd7 {[%clk 0:01:17]}  Nxd7 {[%clk 0:01:26]} 24. Rxb7 {[%clk 0:01:13]}  Rad8 {[%clk 0:01:14]} 25. Bxd5+ {[%clk 0:01:07]}  Kh8 {[%clk 0:01:15]} 26. Bc6 {[%clk 0:00:52]}  g5 {[%clk 0:01:11]} 27. Bc7 {[%clk 0:00:47]}  Nb8 {[%clk 0:00:56]} 28. Bxb8 {[%clk 0:00:47]}  Rxb8 {[%clk 0:00:55]} 29. Rxe7 {[%clk 0:00:47]}  Rfc8 {[%clk 0:00:52]} 30. d5 {[%clk 0:00:47]}  Rb2 {[%clk 0:00:52]} 31. Rfe1 {[%clk 0:00:45]}  Rxa2 {[%clk 0:00:51]} 32. Re8+ {[%clk 0:00:45]}  Rxe8 {[%clk 0:00:52]} 33. Rxe8+ {[%clk 0:00:45]}  Kg7 {[%clk 0:00:53]} 34. d6 {[%clk 0:00:43]}  Ra1+ {[%clk 0:00:53]} 35. Kg2 {[%clk 0:00:42]}  Kf7 {[%clk 0:00:54]} 36. d7 {[%clk 0:00:42]}  Rd1 {[%clk 0:00:54]} 37. d8=Q {[%clk 0:00:42]}  Rxd8 {[%clk 0:00:55]} 38. Rxd8 {[%clk 0:00:43]}  h5 {[%clk 0:00:56]} 39. h4 {[%clk 0:00:41]}  gxh4 {[%clk 0:00:56]} 40. gxh4 {[%clk 0:00:41]}  Kg6 {[%clk 0:00:57]} 41. a4 {[%clk 0:00:40]}  Kf5 {[%clk 0:00:57]} 42. a5 {[%clk 0:00:40]}  Kg4 {[%clk 0:00:58]} 43. Rd4+ {[%clk 0:00:38]}  Kf5 {[%clk 0:00:58]} 44. a6 {[%clk 0:00:38]}  Ke5 {[%clk 0:00:59]} 45. Re4+ {[%clk 0:00:35]}  Kf5 {[%clk 0:01:00]} 46. a7 {[%clk 0:00:34]}  Kg6 {[%clk 0:01:01]} 47. a8=R {[%clk 0:00:33]}  Kf5 {[%clk 0:01:02]} 48. Kg3 {[%clk 0:00:31]}  Kg6 {[%clk 0:01:03]} 49. Rf4 {[%clk 0:00:31]}  Kh7 {[%clk 0:01:02]} 50. Rxf6 {[%clk 0:00:29]}  Kg7 {[%clk 0:01:03]} 51. Rff8 {[%clk 0:00:25]}  Kh7 {[%clk 0:01:04]} 52. Rh8+ {[%clk 0:00:25]}  Kg7 {[%clk 0:01:05]} 53. Rag8+ {[%clk 0:00:25]}  Kf6 {[%clk 0:01:05]} 54. Rxh5 {[%clk 0:00:24]}  Ke7 {[%clk 0:01:06]} 55. Rf5 {[%clk 0:00:21]}  Kd6 {[%clk 0:01:06]} 56. Bh1 {[%clk 0:00:22]}  Ke7 {[%clk 0:01:06]} 57. Kg4 {[%clk 0:00:22]}  Ke6 {[%clk 0:01:07]} 58. h5 {[%clk 0:00:22]}  Ke7 {[%clk 0:01:08]} 59. h6 {[%clk 0:00:23]}  Ke6 {[%clk 0:01:09]} 60. h7 {[%clk 0:00:24]}  Ke7 {[%clk 0:01:10]} 61. h8=R {[%clk 0:00:23]}  Ke6 {[%clk 0:01:11]} 62. Re8+ {[%clk 0:00:20]}  Kd7 {[%clk 0:01:10]} 63. Rd5+ {[%clk 0:00:20]}  Kc6 {[%clk 0:01:10]} 64. f4 {[%clk 0:00:21]}  Kc7 {[%clk 0:01:11]} 65. f5 {[%clk 0:00:21]}  Kc6 {[%clk 0:01:12]} 66. f6 {[%clk 0:00:22]}  Kc7 {[%clk 0:01:13]} 67. f7 {[%clk 0:00:22]}  Kc6 {[%clk 0:01:14]} 68. f8=R {[%clk 0:00:21]}  Kc7 {[%clk 0:01:15]} 69. Rg5 {[%clk 0:00:19]}  Kd7 {[%clk 0:01:14]} 70. Rgg8 {[%clk 0:00:17]}  Kc7 {[%clk 0:01:13]} 71. Bc6 {[%clk 0:00:16]}  Kd6 {[%clk 0:01:14]} 72. Rd8+ {[%clk 0:00:14]}  Kc5 {[%clk 0:01:15]} 73. Bh1 {[%clk 0:00:12]}  Kb6 {[%clk 0:01:16]} 74. Kf5 {[%clk 0:00:11]}  Kc7 {[%clk 0:01:16]} 75. Ke6 {[%clk 0:00:10]}  Kb6 {[%clk 0:01:17]} 76. Kf7 {[%clk 0:00:06]}  Kc7 {[%clk 0:01:18]} 77. Ke8 {[%clk 0:00:06]}  Kb6 {[%clk 0:01:19]} 78. Kf7 {[%clk 0:00:06]}  Kc7 {[%clk 0:01:19]} 79. Rc8+ {[%clk 0:00:06]}  Kb6 {[%clk 0:01:20]} 80. Rb8+ {[%clk 0:00:06]}  Kc7 {[%clk 0:01:21]} 81. Rfc8+ {[%clk 0:00:07]}  Kd6 {[%clk 0:01:21]} 82. Rgd8+ {[%clk 0:00:08]}  Ke5 {[%clk 0:01:22]} 83. Rhe8+ {[%clk 0:00:09]}  Kf4 {[%clk 0:01:23]} 84. Rb4+ {[%clk 0:00:08]}  Kg5 {[%clk 0:01:24]} 85. Rc5+ {[%clk 0:00:08]}  Kh6 {[%clk 0:01:24]} 86. Rd6+ {[%clk 0:00:08]}  Kh7 {[%clk 0:01:24]} 87. Be4# {[%clk 0:00:08]} 1-0


[Site "https://www.chess.com"]

[Event "Titled Tuesday Blitz August 22 Late 2023"]
[White "Mesa Cruz, Juan Carlos"]
[Black "Harish, Neeraj"]
[WhiteFideId "6423400"]
[BlackFideId "30958130"]
[WhiteElo "2444"]
[BlackElo "2346"]
[Result "1-0"]
[Round "11"]
[TimeControl "180+1"]
[Date "2023.08.22"]
[WhiteClock "0:00:09"]
[BlackClock "0:00:00"]
[Board "79"]

1. Nf3 {[%clk 0:00:10]}  d5 {[%clk 0:02:58]} 2. g3 {[%clk 0:00:09]}  Nf6 {[%clk 0:02:57]} 3. Bg2 {[%clk 0:00:05]}  e6 {[%clk 0:02:57]} 4. O-O {[%clk 0:00:06]}  Be7 {[%clk 0:02:58]} 5. d3 {[%clk 0:00:05]}  O-O {[%clk 0:02:58]} 6. c4 {[%clk 0:00:06]}  c5 {[%clk 0:02:56]} 7. cxd5 {[%clk 0:00:06]}  exd5 {[%clk 0:02:56]} 8. d4 {[%clk 0:00:07]}  cxd4 {[%clk 0:02:51]} 9. Nxd4 {[%clk 0:00:08]}  Nc6 {[%clk 0:02:52]} 10. Nc3 {[%clk 0:00:09]}  Bc5 {[%clk 0:02:45]} 11. Be3 {[%clk 0:00:09]}  Nxd4 {[%clk 0:02:44]} 12. Bxd4 {[%clk 0:00:09]}  Bxd4 {[%clk 0:02:45]} 13. Qxd4 {[%clk 0:00:10]}  Be6 {[%clk 0:02:45]} 14. Rac1 {[%clk 0:00:10]}  Rc8 {[%clk 0:02:40]} 15. Rfd1 {[%clk 0:00:10]}  Qd7 {[%clk 0:02:35]} 16. b3 {[%clk 0:00:09]}  Rfd8 {[%clk 0:02:34]} 17. e3 {[%clk 0:00:09]}  h6 {[%clk 0:02:30]} 18. Ne2 {[%clk 0:00:09]}  Rxc1 {[%clk 0:02:22]} 19. Rxc1 {[%clk 0:00:10]}  Rc8 {[%clk 0:02:22]} 20. Rd1 {[%clk 0:00:11]}  Rc2 {[%clk 0:02:13]} 21. Rd2 {[%clk 0:00:10]}  Rxd2 {[%clk 0:01:49]} 22. Qxd2 {[%clk 0:00:11]}  Ne4 {[%clk 0:01:35]} 23. Qd4 {[%clk 0:00:07]}  b6 {[%clk 0:01:20]} 24. Bxe4 {[%clk 0:00:06]}  dxe4 {[%clk 0:01:20]} 25. Qxd7 {[%clk 0:00:05]}  Bxd7 {[%clk 0:01:20]} 26. Nc3 {[%clk 0:00:06]}  f5 {[%clk 0:01:19]} 27. Kf1 {[%clk 0:00:07]}  Kf7 {[%clk 0:01:19]} 28. Ke2 {[%clk 0:00:08]}  Ke6 {[%clk 0:01:19]} 29. Kd2 {[%clk 0:00:09]}  Kd6 {[%clk 0:01:16]} 30. Ne2 {[%clk 0:00:09]}  Kc5 {[%clk 0:01:15]} 31. Kc3 {[%clk 0:00:09]}  a5 {[%clk 0:01:12]} 32. a3 {[%clk 0:00:09]}  Kd5 {[%clk 0:01:05]} 33. b4 {[%clk 0:00:08]}  g6 {[%clk 0:00:54]} 34. Nf4+ {[%clk 0:00:06]}  Kc6 {[%clk 0:00:40]} 35. Nxg6 {[%clk 0:00:07]}  Kb5 {[%clk 0:00:36]} 36. Nf4 {[%clk 0:00:07]}  Ka4 {[%clk 0:00:27]} 37. bxa5 {[%clk 0:00:06]}  bxa5 {[%clk 0:00:25]} 38. Kb2 {[%clk 0:00:06]}  Kb5 {[%clk 0:00:20]} 39. Nd5 {[%clk 0:00:05]}  Kc5 {[%clk 0:00:16]} 40. Nf6 {[%clk 0:00:03]}  Be6 {[%clk 0:00:15]} 41. Kc3 {[%clk 0:00:03]}  Bf7 {[%clk 0:00:13]} 42. Nd7+ {[%clk 0:00:01]}  Kc6 {[%clk 0:00:12]} 43. Nf8 {[%clk 0:00:02]}  Kd6 {[%clk 0:00:12]} 44. Nh7 {[%clk 0:00:03]}  Ke7 {[%clk 0:00:09]} 45. h4 {[%clk 0:00:04]}  Bg8 {[%clk 0:00:08]} 46. Ng5 {[%clk 0:00:02]}  hxg5 {[%clk 0:00:08]} 47. hxg5 {[%clk 0:00:03]}  a4 {[%clk 0:00:07]} 48. Kd4 {[%clk 0:00:04]}  Be6 {[%clk 0:00:05]} 49. Ke5 {[%clk 0:00:05]}  Kf7 {[%clk 0:00:06]} 50. g6+ {[%clk 0:00:03]}  Ke7 {[%clk 0:00:06]} 51. g7 {[%clk 0:00:03]}  Bg8 {[%clk 0:00:04]} 52. Kxf5 {[%clk 0:00:03]}  Kf7 {[%clk 0:00:05]} 53. Kxe4 {[%clk 0:00:04]}  Kxg7 {[%clk 0:00:05]} 54. Kd4 {[%clk 0:00:05]}  Kf6 {[%clk 0:00:05]} 55. e4 {[%clk 0:00:06]}  Bb3 {[%clk 0:00:05]} 56. f4 {[%clk 0:00:06]}  Ke6 {[%clk 0:00:05]} 57. g4 {[%clk 0:00:07]}  Kf6 {[%clk 0:00:05]} 58. g5+ {[%clk 0:00:07]}  Kg6 {[%clk 0:00:06]} 59. Ke5 {[%clk 0:00:08]}  Bc4 {[%clk 0:00:05]} 60. Kd6 {[%clk 0:00:07]}  Bd3 {[%clk 0:00:04]} 61. e5 {[%clk 0:00:08]}  Bc4 {[%clk 0:00:04]} 62. e6 {[%clk 0:00:08]}  Bb5 {[%clk 0:00:02]} 63. Ke5 {[%clk 0:00:09]}  Bc6 {[%clk 0:00:01]} 64. f5+ {[%clk 0:00:08]}  Kxg5 {[%clk 0:00:01]} 65. f6 {[%clk 0:00:09]}  Kg6 {[%clk 0:00:00]} 66. f7 {[%clk 0:00:09]} 1-0


[Site "https://www.chess.com"]

[Event "Titled Tuesday Blitz August 22 Late 2023"]
[White "Balla, Tamas-Kristof"]
[Black "Stanisz, Patryk"]
[WhiteFideId "1208497"]
[BlackFideId "1123106"]
[WhiteElo "2439"]
[BlackElo "2341"]
[Result "1-0"]
[Round "11"]
[TimeControl "180+1"]
[Date "2023.08.22"]
[WhiteClock "0:01:14"]
[BlackClock "0:02:06"]
[Board "80"]

1. e4 {[%clk 0:03:00]}  c5 {[%clk 0:02:59]} 2. c3 {[%clk 0:03:01]}  Nf6 {[%clk 0:02:59]} 3. e5 {[%clk 0:03:01]}  Nd5 {[%clk 0:02:59]} 4. d4 {[%clk 0:03:01]}  cxd4 {[%clk 0:03:00]} 5. Nf3 {[%clk 0:03:01]}  Nc6 {[%clk 0:03:01]} 6. cxd4 {[%clk 0:03:02]}  d6 {[%clk 0:03:00]} 7. Bc4 {[%clk 0:03:02]}  Nb6 {[%clk 0:03:01]} 8. Bb5 {[%clk 0:03:03]}  d5 {[%clk 0:03:01]} 9. Nc3 {[%clk 0:03:01]}  Bg4 {[%clk 0:03:01]} 10. h3 {[%clk 0:02:49]}  Bh5 {[%clk 0:03:00]} 11. O-O {[%clk 0:02:50]}  e6 {[%clk 0:03:00]} 12. Be2 {[%clk 0:02:49]}  Be7 {[%clk 0:02:59]} 13. a3 {[%clk 0:02:48]}  Rc8 {[%clk 0:02:56]} 14. Be3 {[%clk 0:02:48]}  Na5 {[%clk 0:02:54]} 15. Nd2 {[%clk 0:02:44]}  Bxe2 {[%clk 0:02:52]} 16. Qxe2 {[%clk 0:02:45]}  Nac4 {[%clk 0:02:45]} 17. Nxc4 {[%clk 0:02:44]}  Nxc4 {[%clk 0:02:44]} 18. Rac1 {[%clk 0:02:42]}  O-O {[%clk 0:02:43]} 19. f4 {[%clk 0:02:08]}  Qd7 {[%clk 0:02:43]} 20. Bf2 {[%clk 0:01:55]}  b5 {[%clk 0:02:41]} 21. Kh1 {[%clk 0:01:46]}  a5 {[%clk 0:02:40]} 22. g4 {[%clk 0:01:36]}  b4 {[%clk 0:02:40]} 23. axb4 {[%clk 0:01:36]}  axb4 {[%clk 0:02:40]} 24. Nd1 {[%clk 0:01:36]}  Nb6 {[%clk 0:02:33]} 25. Bg3 {[%clk 0:01:27]}  Rxc1 {[%clk 0:02:32]} 26. f5 {[%clk 0:01:26]}  Bg5 {[%clk 0:02:29]} 27. h4 {[%clk 0:01:24]}  Bd8 {[%clk 0:02:25]} 28. f6 {[%clk 0:01:21]}  Qc6 {[%clk 0:02:18]} 29. Qd2 {[%clk 0:01:15]}  Qc2 {[%clk 0:02:13]} 30. Qg5 {[%clk 0:01:14]}  Rxd1 {[%clk 0:02:06]} 31. Qxg7# {[%clk 0:01:14]} 1-0


[Site "https://www.chess.com"]

[Event "Titled Tuesday Blitz August 22 Late 2023"]
[White "Feliz Dotel, Dewar Bienvenido"]
[Black "Jorajuria Mendoza, Algol"]
[WhiteFideId "6402801"]
[BlackFideId "5128897"]
[WhiteElo "2204"]
[BlackElo "2430"]
[Result "1-0"]
[Round "11"]
[TimeControl "180+1"]
[Date "2023.08.22"]
[WhiteClock "0:00:33"]
[BlackClock "0:00:17"]
[Board "82"]

1. d4 {[%clk 0:02:59]}  d5 {[%clk 0:03:00]} 2. e3 {[%clk 0:02:59]}  Nf6 {[%clk 0:03:00]} 3. Nf3 {[%clk 0:02:59]}  c5 {[%clk 0:03:00]} 4. dxc5 {[%clk 0:02:59]}  Nc6 {[%clk 0:02:55]} 5. a3 {[%clk 0:02:44]}  e5 {[%clk 0:02:49]} 6. b4 {[%clk 0:02:36]}  Bg4 {[%clk 0:02:46]} 7. Be2 {[%clk 0:02:35]}  Qc7 {[%clk 0:02:37]} 8. Bb2 {[%clk 0:02:34]}  Bxf3 {[%clk 0:02:15]} 9. Bxf3 {[%clk 0:02:32]}  Rd8 {[%clk 0:02:14]} 10. h3 {[%clk 0:02:25]}  Be7 {[%clk 0:02:04]} 11. Nd2 {[%clk 0:02:22]}  O-O {[%clk 0:02:02]} 12. O-O {[%clk 0:02:16]}  a5 {[%clk 0:01:56]} 13. c3 {[%clk 0:02:02]}  e4 {[%clk 0:01:45]} 14. Be2 {[%clk 0:02:00]}  Ne5 {[%clk 0:01:44]} 15. Nb3 {[%clk 0:01:58]}  Rfe8 {[%clk 0:01:29]} 16. Nd4 {[%clk 0:01:57]}  h6 {[%clk 0:01:15]} 17. Qc2 {[%clk 0:01:41]}  b6 {[%clk 0:01:00]} 18. cxb6 {[%clk 0:01:28]}  Qxb6 {[%clk 0:01:01]} 19. Rac1 {[%clk 0:01:16]}  Rc8 {[%clk 0:00:59]} 20. Qb3 {[%clk 0:01:12]}  Bd6 {[%clk 0:00:47]} 21. Nf5 {[%clk 0:01:06]}  Bb8 {[%clk 0:00:45]} 22. c4 {[%clk 0:00:59]}  dxc4 {[%clk 0:00:20]} 23. Bxc4 {[%clk 0:00:59]}  Nxc4 {[%clk 0:00:19]} 24. Rxc4 {[%clk 0:00:59]}  a4 {[%clk 0:00:19]} 25. Qc3 {[%clk 0:00:52]}  Qe6 {[%clk 0:00:19]} 26. Rxc8 {[%clk 0:00:34]}  Rxc8 {[%clk 0:00:17]} 27. Qxc8+ {[%clk 0:00:33]} 1-0


[Site "https://www.chess.com"]

[Event "Titled Tuesday Blitz August 22 Late 2023"]
[White "Ismayil, Malak"]
[Black "Ardila, Oscar Humberto"]
[WhiteFideId "13412604"]
[BlackFideId "4404742"]
[WhiteElo "2484"]
[BlackElo "2325"]
[Result "1/2-1/2"]
[Round "11"]
[TimeControl "180+1"]
[Date "2023.08.22"]
[WhiteClock "0:01:57"]
[BlackClock "0:00:16"]
[Board "88"]

1. e4 {[%clk 0:03:00]}  e5 {[%clk 0:02:59]} 2. Nf3 {[%clk 0:03:01]}  Nf6 {[%clk 0:03:00]} 3. d3 {[%clk 0:02:59]}  Nc6 {[%clk 0:03:00]} 4. Nc3 {[%clk 0:02:58]}  Bb4 {[%clk 0:03:00]} 5. Bd2 {[%clk 0:02:58]}  d6 {[%clk 0:03:00]} 6. Be2 {[%clk 0:02:57]}  O-O {[%clk 0:02:59]} 7. O-O {[%clk 0:02:58]}  h6 {[%clk 0:02:59]} 8. a3 {[%clk 0:02:58]}  Ba5 {[%clk 0:02:59]} 9. h3 {[%clk 0:02:58]}  Qe7 {[%clk 0:02:58]} 10. Nd5 {[%clk 0:02:55]}  Nxd5 {[%clk 0:02:51]} 11. exd5 {[%clk 0:02:56]}  Bxd2 {[%clk 0:02:49]} 12. Qxd2 {[%clk 0:02:57]}  Nb8 {[%clk 0:02:43]} 13. Rae1 {[%clk 0:02:54]}  f5 {[%clk 0:02:42]} 14. Bd1 {[%clk 0:02:51]}  Qf6 {[%clk 0:02:42]} 15. c4 {[%clk 0:02:47]}  Nd7 {[%clk 0:02:42]} 16. b4 {[%clk 0:02:45]}  a5 {[%clk 0:02:42]} 17. Bb3 {[%clk 0:02:42]}  Kh8 {[%clk 0:02:30]} 18. Rc1 {[%clk 0:02:35]}  b6 {[%clk 0:02:24]} 19. Rfe1 {[%clk 0:02:33]}  axb4 {[%clk 0:02:21]} 20. axb4 {[%clk 0:02:33]}  Bb7 {[%clk 0:02:14]} 21. Ra1 {[%clk 0:02:28]}  Rxa1 {[%clk 0:02:08]} 22. Rxa1 {[%clk 0:02:29]}  e4 {[%clk 0:02:09]} 23. Ra7 {[%clk 0:02:26]}  exf3 {[%clk 0:01:46]} 24. Rxb7 {[%clk 0:02:25]}  Qa1+ {[%clk 0:01:37]} 25. Kh2 {[%clk 0:02:24]}  Qf1 {[%clk 0:01:36]} 26. gxf3 {[%clk 0:02:19]}  Ne5 {[%clk 0:01:36]} 27. Bd1 {[%clk 0:02:17]}  Rf6 {[%clk 0:01:17]} 28. Qe2 {[%clk 0:02:10]}  Nxf3+ {[%clk 0:01:00]} 29. Qxf3 {[%clk 0:02:08]}  Rg6 {[%clk 0:01:00]} 30. Rb8+ {[%clk 0:02:05]}  Kh7 {[%clk 0:01:00]} 31. h4 {[%clk 0:01:57]}  Qg1+ {[%clk 0:00:31]} 32. Kh3 {[%clk 0:01:56]}  Qf1+ {[%clk 0:00:29]} 33. Kh2 {[%clk 0:01:57]}  Qg1+ {[%clk 0:00:28]} 34. Kh3 {[%clk 0:01:57]}  Qf1+ {[%clk 0:00:16]} 35. Kh2 {[%clk 0:01:57]} 1/2-1/2


[Site "https://www.chess.com"]

[Event "Titled Tuesday Blitz August 22 Late 2023"]
[White "SergioMoralesG"]
[Black "Acikel, Mert"]
[BlackFideId "12956465"]
[WhiteElo "2420"]
[BlackElo "2311"]
[Result "1-0"]
[Round "11"]
[TimeControl "180+1"]
[Date "2023.08.22"]
[WhiteClock "0:00:52"]
[BlackClock "0:00:04"]
[Board "90"]

1. d4 {[%clk 0:03:00]}  d5 {[%clk 0:02:43]} 2. c4 {[%clk 0:02:59]}  e6 {[%clk 0:02:39]} 3. Nf3 {[%clk 0:02:59]}  c5 {[%clk 0:02:37]} 4. e3 {[%clk 0:02:57]}  Nf6 {[%clk 0:02:32]} 5. Nc3 {[%clk 0:02:57]}  Nc6 {[%clk 0:02:33]} 6. cxd5 {[%clk 0:02:57]}  Nxd5 {[%clk 0:02:26]} 7. Bd3 {[%clk 0:02:53]}  cxd4 {[%clk 0:02:02]} 8. exd4 {[%clk 0:02:51]}  Be7 {[%clk 0:02:01]} 9. O-O {[%clk 0:02:50]}  O-O {[%clk 0:01:56]} 10. Re1 {[%clk 0:02:47]}  Bf6 {[%clk 0:01:54]} 11. Be4 {[%clk 0:02:11]}  a6 {[%clk 0:01:48]} 12. h3 {[%clk 0:02:08]}  Re8 {[%clk 0:01:41]} 13. a3 {[%clk 0:01:44]}  Nxc3 {[%clk 0:01:38]} 14. bxc3 {[%clk 0:01:44]}  Bd7 {[%clk 0:01:38]} 15. a4 {[%clk 0:01:38]}  Na5 {[%clk 0:01:38]} 16. Bf4 {[%clk 0:01:30]}  Rc8 {[%clk 0:01:37]} 17. Qd3 {[%clk 0:01:24]}  h6 {[%clk 0:01:34]} 18. Ne5 {[%clk 0:01:23]}  Bc6 {[%clk 0:01:16]} 19. Bh7+ {[%clk 0:01:18]}  Kf8 {[%clk 0:01:13]} 20. Ng4 {[%clk 0:01:18]}  Bd5 {[%clk 0:01:06]} 21. Nxf6 {[%clk 0:01:17]}  Qxf6 {[%clk 0:01:05]} 22. Bd6+ {[%clk 0:01:17]}  Re7 {[%clk 0:01:02]} 23. Be4 {[%clk 0:01:09]}  Bc4 {[%clk 0:01:02]} 24. Qg3 {[%clk 0:01:05]}  Nc6 {[%clk 0:00:46]} 25. h4 {[%clk 0:00:59]}  Kg8 {[%clk 0:00:46]} 26. Be5 {[%clk 0:00:53]}  Nxe5 {[%clk 0:00:19]} 27. dxe5 {[%clk 0:00:54]}  Qf5 {[%clk 0:00:04]} 28. Bxf5 {[%clk 0:00:52]} 1-0


[Site "https://www.chess.com"]

[Event "Titled Tuesday Blitz August 22 Late 2023"]
[White "Avila Rodriguez, Joshua Ad"]
[Black "Zampronha, Wladimir Camilo"]
[WhiteFideId "5126444"]
[BlackFideId "2103087"]
[WhiteElo "2418"]
[BlackElo "2308"]
[Result "1-0"]
[Round "11"]
[TimeControl "180+1"]
[Date "2023.08.22"]
[WhiteClock "0:00:08"]
[BlackClock "0:00:02"]
[Board "91"]

1. e4 {[%clk 0:02:59]}  c5 {[%clk 0:02:59]} 2. Nf3 {[%clk 0:03:00]}  e6 {[%clk 0:03:00]} 3. d4 {[%clk 0:03:00]}  cxd4 {[%clk 0:03:01]} 4. Nxd4 {[%clk 0:03:00]}  Nc6 {[%clk 0:03:01]} 5. Nc3 {[%clk 0:03:01]}  Qc7 {[%clk 0:03:00]} 6. Be3 {[%clk 0:03:01]}  a6 {[%clk 0:03:00]} 7. g4 {[%clk 0:03:01]}  b5 {[%clk 0:02:47]} 8. Nxc6 {[%clk 0:03:01]}  dxc6 {[%clk 0:02:46]} 9. Qf3 {[%clk 0:02:54]}  Bb7 {[%clk 0:02:45]} 10. O-O-O {[%clk 0:02:50]}  c5 {[%clk 0:02:45]} 11. g5 {[%clk 0:02:35]}  c4 {[%clk 0:02:40]} 12. h4 {[%clk 0:02:23]}  Bc5 {[%clk 0:02:35]} 13. h5 {[%clk 0:02:00]}  Bxe3+ {[%clk 0:02:35]} 14. Qxe3 {[%clk 0:02:00]}  Ne7 {[%clk 0:02:33]} 15. Bh3 {[%clk 0:01:55]}  b4 {[%clk 0:02:28]} 16. Na4 {[%clk 0:01:50]}  b3 {[%clk 0:01:58]} 17. Kb1 {[%clk 0:00:32]}  Qc6 {[%clk 0:01:45]} 18. Nc5 {[%clk 0:00:30]}  bxa2+ {[%clk 0:01:44]} 19. Ka1 {[%clk 0:00:30]}  Rc8 {[%clk 0:01:43]} 20. Nxb7 {[%clk 0:00:29]}  Qxb7 {[%clk 0:01:44]} 21. Qd4 {[%clk 0:00:20]}  c3 {[%clk 0:01:38]} 22. b3 {[%clk 0:00:14]}  Qc7 {[%clk 0:01:23]} 23. g6 {[%clk 0:00:11]}  Qa5 {[%clk 0:01:15]} 24. gxf7+ {[%clk 0:00:04]}  Kxf7 {[%clk 0:01:13]} 25. Qa4 {[%clk 0:00:03]}  Qxa4 {[%clk 0:01:12]} 26. bxa4 {[%clk 0:00:04]}  Rhd8 {[%clk 0:00:56]} 27. Kxa2 {[%clk 0:00:03]}  Nc6 {[%clk 0:00:47]} 28. Rxd8 {[%clk 0:00:01]}  Rxd8 {[%clk 0:00:47]} 29. Kb3 {[%clk 0:00:01]}  Rd2 {[%clk 0:00:45]} 30. Kxc3 {[%clk 0:00:02]}  Rxf2 {[%clk 0:00:45]} 31. Rf1 {[%clk 0:00:02]}  Rxf1 {[%clk 0:00:43]} 32. Bxf1 {[%clk 0:00:03]}  Ke7 {[%clk 0:00:33]} 33. Bxa6 {[%clk 0:00:02]}  Kd6 {[%clk 0:00:29]} 34. Bb5 {[%clk 0:00:02]}  Ne5 {[%clk 0:00:28]} 35. a5 {[%clk 0:00:03]}  Kc5 {[%clk 0:00:28]} 36. Bd3 {[%clk 0:00:01]}  Ng4 {[%clk 0:00:23]} 37. Kd2 {[%clk 0:00:01]}  Nf6 {[%clk 0:00:24]} 38. a6 {[%clk 0:00:01]}  Kb6 {[%clk 0:00:23]} 39. h6 {[%clk 0:00:01]}  gxh6 {[%clk 0:00:18]} 40. Ke3 {[%clk 0:00:02]}  Nd7 {[%clk 0:00:11]} 41. Kf4 {[%clk 0:00:03]}  Nc5 {[%clk 0:00:11]} 42. Ke5 {[%clk 0:00:03]}  Nxa6 {[%clk 0:00:09]} 43. Bxa6 {[%clk 0:00:02]}  Kxa6 {[%clk 0:00:09]} 44. Kxe6 {[%clk 0:00:03]}  Kb6 {[%clk 0:00:06]} 45. Kf6 {[%clk 0:00:04]}  Kc5 {[%clk 0:00:06]} 46. e5 {[%clk 0:00:04]}  h5 {[%clk 0:00:05]} 47. e6 {[%clk 0:00:05]}  h4 {[%clk 0:00:05]} 48. e7 {[%clk 0:00:06]}  h3 {[%clk 0:00:06]} 49. e8=Q {[%clk 0:00:07]}  h2 {[%clk 0:00:06]} 50. Qe5+ {[%clk 0:00:07]}  Kc4 {[%clk 0:00:02]} 51. Qxh2 {[%clk 0:00:08]} 1-0


[Site "https://www.chess.com"]

[Event "Titled Tuesday Blitz August 22 Late 2023"]
[White "Ronka, Erik"]
[Black "Brahami, Lamine"]
[WhiteFideId "505080"]
[BlackFideId "7905637"]
[WhiteElo "2416"]
[BlackElo "2302"]
[Result "0-1"]
[Round "11"]
[TimeControl "180+1"]
[Date "2023.08.22"]
[WhiteClock "0:00:15"]
[BlackClock "0:00:34"]
[Board "92"]

1. Nc3 {[%clk 0:03:00]}  Nf6 {[%clk 0:02:58]} 2. d4 {[%clk 0:02:59]}  d5 {[%clk 0:02:56]} 3. Bf4 {[%clk 0:02:59]}  e6 {[%clk 0:02:56]} 4. Nb5 {[%clk 0:02:58]}  Na6 {[%clk 0:02:56]} 5. a3 {[%clk 0:02:58]}  c6 {[%clk 0:02:55]} 6. Nc3 {[%clk 0:02:59]}  Bd6 {[%clk 0:02:54]} 7. Bg3 {[%clk 0:02:54]}  O-O {[%clk 0:02:52]} 8. Nf3 {[%clk 0:02:54]}  b6 {[%clk 0:02:44]} 9. Ne5 {[%clk 0:02:53]}  Bb7 {[%clk 0:02:44]} 10. e3 {[%clk 0:02:54]}  c5 {[%clk 0:02:40]} 11. Bd3 {[%clk 0:02:49]}  cxd4 {[%clk 0:02:35]} 12. exd4 {[%clk 0:02:50]}  Ne4 {[%clk 0:02:35]} 13. Qh5 {[%clk 0:02:37]}  f5 {[%clk 0:02:21]} 14. f3 {[%clk 0:02:30]}  Nxc3 {[%clk 0:02:19]} 15. bxc3 {[%clk 0:02:31]}  Rc8 {[%clk 0:02:19]} 16. Bf4 {[%clk 0:02:22]}  Rxc3 {[%clk 0:02:10]} 17. g4 {[%clk 0:02:22]}  Rxd3 {[%clk 0:01:46]} 18. cxd3 {[%clk 0:02:20]}  b5 {[%clk 0:01:41]} 19. Rg1 {[%clk 0:02:19]}  Qa5+ {[%clk 0:01:40]} 20. Bd2 {[%clk 0:02:18]}  Qb6 {[%clk 0:01:38]} 21. gxf5 {[%clk 0:00:50]}  Bxe5 {[%clk 0:01:34]} 22. f6 {[%clk 0:00:33]}  Bxf6 {[%clk 0:01:31]} 23. Be3 {[%clk 0:00:30]}  e5 {[%clk 0:01:09]} 24. Rc1 {[%clk 0:00:28]}  exd4 {[%clk 0:01:07]} 25. Bh6 {[%clk 0:00:27]}  Qe6+ {[%clk 0:00:59]} 26. Kd1 {[%clk 0:00:25]}  Re8 {[%clk 0:00:53]} 27. Bd2 {[%clk 0:00:25]}  Qe2+ {[%clk 0:00:46]} 28. Kc2 {[%clk 0:00:25]}  Rc8+ {[%clk 0:00:47]} 29. Kb3 {[%clk 0:00:24]}  Qxd3+ {[%clk 0:00:46]} 30. Bc3 {[%clk 0:00:21]}  Qc4+ {[%clk 0:00:36]} 31. Kb2 {[%clk 0:00:19]}  dxc3+ {[%clk 0:00:36]} 32. Kc2 {[%clk 0:00:16]}  Qe2+ {[%clk 0:00:33]} 33. Kb3 {[%clk 0:00:15]}  Qb2# {[%clk 0:00:34]} 0-1


[Site "https://www.chess.com"]